{"text_format":"1","workbook":"xlsx","n_sheets":4,"sheets":["Données","Match 01","Match 02","Match 03"],"not_rendered":{"charts":0,"images":0,"macros":0,"external_links":1,"defined_names":9,"comments":1,"pivot_tables":0},"unopened":[],"bounds":{"document_bytes":16777216,"sheet_cells":100000,"rows_first":2000,"rows_last":500,"rows_between":2000,"halvings":0,"cell_chars":16384,"cell_head_chars":4096},"cells_cut":0,"cells_raw":0,"read":"whole","date_system":"1900"}

{"sheet":"Données","index":0,"n_rows":518,"n_cols":11,"rows_kept":518,"cut":false,"hidden":true,"merged":[]}
["Division","Format","Equipes","Joueurs",null,"Index"]
[1,"2,60 m","ARGENCES (ABC)","ADNET FABRICE","017652Y",1]
[2,"2,80 m","ARGENTAN (PLA)","AHAMD ABDUZALIL","134671R",2]
[3,"3,10 m","BERNAY (BCB)","ALEXANDRE JACQUES","017869H",3]
[4,null,"CANY-BARVILLE (BCCB)","ALIA AHMED","166242Y",4]
[5,null,"CORMELLES (BCC)","ALLART ELYSE","113094U",5,1,"50 points","50 points","50 points","50 points"]
[null,null,"EVREUX (BCE)","ANDRE BERNARD","140477Z",null,2,"35 points","35 points","35 points","35 points"]
[null,null,"FECAMP (BCF)","ANTEM ANTOINE","017606E",null,3,"30 points","30 points","30 points","Pas de joueur n° 4"]
[null,null,"GAILLON (BCG)","ARGENTIN JEAN LUC","137351T",null,4,"25 points","25 points","25 points","Pas de joueur n° 4"]
[null,null,"LA SAUSSAYE (BCS)","ARRIVE JEAN LUC","100560S",null,5,"20 points\nou 60 reprises","20 points\nou 60 reprises","20 points\nou 60 reprises","Pas de joueur n° 4"]
[null,null,"LE HAVRE (CEHB)","AUBE ALAIN","168020F"]
[null,null,"LES ANDELYS (BCA)","AUBERT DANIEL","131880I"]
[null,null,"LISIEUX (BCL)","AUBERT JEAN PAUL","129110U"]
[null,null,"LOUVIERS (BACL)","AZIZIAN RICHARD","017803T"]
[null,null,"MAROMME (MBC)","BACHELET KARINE","171761X",null,null,"ARGENCES BILLARD CLUB             ","***","Place de la République","14370   ARGENCES"]
[null,null,"OISSEL (BCO)","BAERT PHILIPPE","172578K",null,null,"ASSOCIATION SPORTIVE STADE URVILLE","Le clos Moisson","325, allée des Avoineries","50460   URVILLE - NACQUEVILLE"]
[null,null,"PACY/EURE (BCP)","BAILLY NICOLAS","129095F",null,null,"BILLARD AMICAL CLUB LOVERIEN      ","***","3, rue Saint Jean","27400   LOUVIERS"]
[null,null,"ROUEN (RBC)","BAIS PHILIPPE","153013T",null,null,"BILLARD CLUB  DE CANY BARVILLE        ","Complexe sportif Sporticaux","Route de Veulettes","76450   CANY - BARVILLE"]
[null,null,"SAINT MARCEL (BCSM)","BARBIER JEAN LUC","017571V",null,null,"BILLARD CLUB ANDELYSIEN           ","***","3 et 5, rue Ste Clotilde","27700   LES ANDELYS"]
[null,null,"SAINT NICOLAS (BCSNA)","BASSIERE JEAN PIERRE","154338J",null,null,"BILLARD CLUB CORMELLOIS           ","Halle des Sports","rue de la Pagnolée","14123   CORMELLES LE ROYAL"]
[null,null,"SOTTEVILLE (BCS)","BATAILLE VINCENT","017754W",null,null,"BILLARD CLUB DE BERNAY      ","Gymnase Jacques Sébire","Chemin de la Couture","27300   BERNAY"]
[null,null,"URVILLE (ASSUN BC)","BATTE JEAN MARC","017531H",null,null,"BILLARD CLUB DE FECAMP            ","***","5, rue Henri Dunant","76400   FECAMP"]
[null,null,null,"BAUDER GILBERT","017689J",null,null,"BILLARD CLUB DE LA SAUSSAYE       ","Le Mille Club","rue Lesage  - Maille","27370   LA SAUSSAYE"]
[null,null,null,"BAVILLE SYLVAIN","152619Q",null,null,"BILLARD CLUB DE MAROMME","***","29, rue Berrube","76150   MAROMME"]
[null,null,null,"BAZAUD FRANCK","122758M",null,null,"BILLARD CLUB DE SAINT NICOLAS     ","***","93, rue Laurent Lefèbvre","76510   SAINT NICOLAS D'ALIERMONT"]
[null,null,null,"BEAUGRAND CHRISTIAN","161679N",null,null,"BILLARD CLUB DE SAINT-MARCEL      ","Espace Saint Exupéry","2, rue Jules Ferry","27950   SAINT MARCEL"]
[null,null,null,"BEAUVAIS JEAN FRANCOIS","140954I",null,null,"BILLARD CLUB EBROICIEN            ","Maison des Jeunes et de la Cullture","1, avenue Aristide Briand","27000   EVREUX"]
[null,null,null,"BEGUIN CLAUDE","150707M",null,null,"BILLARD CLUB GAILLONNAIS          ","Centre des Arts Contemporains","Allée de l'Ermitage","27600   GAILLON"]
[null,null,null,"BELDAME DANIEL","112270C",null,null,"BILLARD CLUB LEXOVIEN             ","Maison des Jeunes et de la Cullture","13, boulevard Louis Pasteur","14100   LISIEUX"]
[null,null,null,"BELINY GILLES","017706A",null,null,"BILLARD CLUB OSSELIEN             ","***","8, rue du manoir","76350   OISSEL"]
[null,null,null,"BENDJEMILA TOFIR","017734C",null,null,"BILLARD CLUB PACEEN               ","***","12, rue Montferrand","27120   PACY SUR EURE"]
[null,null,null,"BERTRAND MICHEL","142970W",null,null,"BILLARD CLUB SOTTEVILLAIS         ","***","123, rue Béranger","76300   SOTTEVILLE LES ROUEN"]
[null,null,null,"BESLIN DANIEL","172500A",null,null,"CLUB ECOLE HAVRAIS DE BILLARD     ","***","76, rue des Briquetiers","76600   LE HAVRE"]
[null,null,null,"BETON DOMINIQUE","017629B",null,null,"PATRONAGE LAIQUE ARGENTAN         ","Ecole Pierre Curie","Route de Urou","61200   ARGENTAN"]
[null,null,null,"BETON VALERIE","147263T",null,null,"ROUEN BILLARD CLUB                ","Espace de la Petite Bouverie","Allée Pierre de Coubertin","76100   ROUEN"]
[null,null,null,"BEZARD GEORGES","137339H"]
[null,null,null,"BEZNOSUC MARIE JOSE","169239F"]
[null,null,null,"BIANCHINI JEAN ROBERT","106781Z"]
[null,null,null,"BIDAULT ALAIN","160279R"]
[null,null,null,"BIENAIME ERIC","162881V"]
[null,null,null,"BIETTE CLAUDE","017497Z"]
[null,null,null,"BILLARD DAVID","017465T"]
[null,null,null,"BLIN ARMEL","169474L"]
[null,null,null,"BLONDEL JEAN THIERRY","144155L"]
[null,null,null,"BOCQUAIN JEAN PIERRE","112554A"]
[null,null,null,"BOGO JACQUES","138293Z"]
[null,null,null,"BOITARD MARC","136732Y"]
[null,null,null,"BONHOMME ERIC","144156M"]
[null,null,null,"BOTREL DAVID","156426D"]
[null,null,null,"BOUGOUIN JEAN MICHEL","149537Q"]
[null,null,null,"BOULIER ALAIN","152578W"]
[null,null,null,"BOURGET ALAIN","017466U"]
[null,null,null,"BOUTILLOT CHRISTIAN","163734X"]
[null,null,null,"BOUTIN GILLES","017457L"]
[null,null,null,"BOUTIN GUY","124623F"]
[null,null,null,"BOUTTIER JACKY","153690E"]
[null,null,null,"BOUVIER BERTRAND","149399Q"]
[null,null,null,"BOUVIER GUILLAUME","149400R"]
[null,null,null,"BOUXIN ERIC","167390W"]
[null,null,null,"BRAEMS FLORIAN","160931A"]
[null,null,null,"BREUGNON BERNARD","167321W"]
[null,null,null,"BROWANG CLAUDE","107038W"]
[null,null,null,"BROWANG ERIC","170924M"]
[null,null,null,"BROWANG JEROME","107039X"]
[null,null,null,"BROWANG MICHEL","107040Y"]
[null,null,null,"BRULARD DANIEL","017658E"]
[null,null,null,"BRUNET ANDRE","017746O"]
[null,null,null,"BUDIN BERNARD","163871W"]
[null,null,null,"BURGOT FRANCINE","169893R"]
[null,null,null,"BURGOT FRANCOIS","169892Q"]
[null,null,null,"BUSTOS MIGUEL ANGEL","171767D"]
[null,null,null,"BUTELET JEAN PAUL","017610I"]
[null,null,null,"CADINOT SEBASTIEN","158947T"]
[null,null,null,"CAJEAN PHILIPPE","010634A"]
[null,null,null,"CALLENS TIMEO","166291B"]
[null,null,null,"CARDON JEAN CLAUDE","017542S"]
[null,null,null,"CARLIER ALAIN","153754Z"]
[null,null,null,"CARPENTIER CHRISTIAN","135579P"]
[null,null,null,"CARPENTIER DIDIER","152654D"]
[null,null,null,"CARRE PIERRE","017467V"]
[null,null,null,"CAUWET NOEL","104533N"]
[null,null,null,"CAZAUX JEAN MARC","017643P"]
[null,null,null,"CAZEAUBON SERGE","167848T"]
[null,null,null,"CHAGNOT JEAN CLAUDE","017621T"]
[null,null,null,"CHALVET PATRICE","018027J"]
[null,null,null,"CHAMP FRANCOIS","159430T"]
[null,null,null,"CHANSON PIERRE","111053H"]
[null,null,null,"CHAPLEAU FRANCOIS","137817R"]
[null,null,null,"CHARBONNIER PHILIPPE","127340S"]
[null,null,null,"CHARRON EDITH","169334J"]
[null,null,null,"CHESNEAU JACQUES","133832K"]
[null,null,null,"CHESNEL MATHIEU","017896I"]
[null,null,null,"CHESNEL PATRICK","116629T"]
[null,null,null,"CHEVALIER PHILIPPE","126208E"]
[null,null,null,"CHEVON NOA","168778E"]
[null,null,null,"CHOLLET LIONEL","107240Q"]
[null,null,null,"CHOQUART PIERRE","133876C"]
[null,null,null,"CHOUPAUT BRUNO","151711D"]
[null,null,null,"CLEMENT FABRICE","152233W"]
[null,null,null,"COCHARD PATRICK","145961X"]
[null,null,null,"COCY GILLES","017709D"]
[null,null,null,"COLINET JEAN LUC","153098L"]
[null,null,null,"COLLE GREGORY","017823N"]
[null,null,null,"COLLE CONTE ILANE","172024H"]
[null,null,null,"COLLE CONTE LUDOVIC","172023G"]
[null,null,null,"COLLERY GABRIEL","172379T"]
[null,null,null,"COLOMER ALAIN","172501B"]
[null,null,null,"CORNO YVES","142307J"]
[null,null,null,"COTTEN JEAN PIERRE","017516S"]
[null,null,null,"COUCHOT BERNARD","112010C"]
[null,null,null,"COURTOIS PIERRE","168350P"]
[null,null,null,"CUVIER GILLES","120322U"]
[null,null,null,"CUVILLIEZ FRANCOISE","150560C"]
[null,null,null,"DAIGLE MICHEL","145242G"]
[null,null,null,"DAIREAUX SERGE","106824Q"]
[null,null,null,"DAON OLIVIER","169727L"]
[null,null,null,"DAUBEUF THIERRY","170708C"]
[null,null,null,"DAUSSY JEAN CLAUDE","148177M"]
[null,null,null,"DAUTRY ANNICK","106284W"]
[null,null,null,"DAVITTI CLAUDE","144074I"]
[null,null,null,"DAVOINE BRUNO","017482K"]
[null,null,null,"DE TOFFOLI JEAN ANTOINE","017476E"]
[null,null,null,"DEFREVILLE ANTHONY","157510G"]
[null,null,null,"DELALANDRE FRANCOIS","168981A"]
[null,null,null,"DELALANDRE VERONIQUE","168982B"]
[null,null,null,"DELALONDRE MAX","110690I"]
[null,null,null,"DELAMARRE ERIC","129114Y"]
[null,null,null,"DELARUE GILLES","169557B"]
[null,null,null,"DELARUE JEAN FRANCOIS","165274W"]
[null,null,null,"DELIGNY JEAN CLAUDE","100518C"]
[null,null,null,"DEMAREST MARCEL","170125T"]
[null,null,null,"DEMERE CHRISTIAN","124007N"]
[null,null,null,"DEMOTTAIS JEAN JACQUES","165991A"]
[null,null,null,"DENZEN LELAIDIER DOLCHE","168817X"]
[null,null,null,"DEPARIS PATRICK","142823F"]
[null,null,null,"DERONGS DANIEL","147139J"]
[null,null,null,"DESCHAMPS MICHEL","172071J"]
[null,null,null,"DESHAYES YANN","172018B"]
[null,null,null,"DESLANDES WILFRIED","147559Q"]
[null,null,null,"DESMARES DOMINIQUE","165839K"]
[null,null,null,"DESOUDIN CEDRIC","157256F"]
[null,null,null,"DESSERRE ALEXANDRE","136733Z"]
[null,null,null,"DEZETANT MARCEL","017627Z"]
[null,null,null,"DIAGA RADJOU VINCENT","109583T"]
[null,null,null,"DOMENGER JEAN FRANCOIS","164326Q"]
[null,null,null,"DONNEGER ABEL","017790G"]
[null,null,null,"DROGUE GILLES","138388Q"]
[null,null,null,"DU BOUCHAGE MICKAEL","126212I"]
[null,null,null,"DUBOIS THIERRY","169451L"]
[null,null,null,"DUBOISREVENU GERALD","134693N"]
[null,null,null,"DUBUC GUILLAUME","166097Q"]
[null,null,null,"DUBUC LOUIS","166098R"]
[null,null,null,"DUCATHE PHILIPPE","164840Z"]
[null,null,null,"DUCROCQ DIDIER","145451H"]
[null,null,null,"DUMARTIN BERTRAND","163172L"]
[null,null,null,"DUMOND PIERRE","136046O"]
[null,null,null,"DUONG KHENN","161710X"]
[null,null,null,"DUPONCHEL ALAIN","112556C"]
[null,null,null,"DUPRE PATRICK","100586S"]
[null,null,null,"DURANTI GILLES","138224I"]
[null,null,null,"DURDEK ALAIN","168816W"]
[null,null,null,"DUTHEIL JACQUES","138165B"]
[null,null,null,"DUTHIL JEAN","017820K"]
[null,null,null,"DUTOT DAMIEN","142404C"]
[null,null,null,"DUTOT GERALD","145692O"]
[null,null,null,"DUVAL BERNARD","140957L"]
[null,null,null,"DUVAL JEAN PAUL","157684W"]
[null,null,null,"DUVAL LUDOVIC","159869W"]
[null,null,null,"DUVAL MICHEL","146926C"]
[null,null,null,"DUVAL RENE","129045H"]
[null,null,null,"ECOURTEMER STEPHANE","018131J"]
[null,null,null,"EICHHOLTZER CLAUDE","125798K"]
[null,null,null,"ELIE JOANNES","142933L"]
[null,null,null,"ERLENBACH FRANCOIS","155194P"]
[null,null,null,"ERONTE MICHEL","017986U"]
[null,null,null,"ESLIER GUY","112009B"]
[null,null,null,"ESTRIER JEAN CLAUDE","017770M"]
[null,null,null,"EUDIER DIDIER","159595Y"]
[null,null,null,"EUDIER MICHEL","017713H"]
[null,null,null,"EVRARD JAMES","157076K"]
[null,null,null,"EVRARD LYLIAN","153268W"]
[null,null,null,"FACQUET SUKMA","152234X"]
[null,null,null,"FACQUET VINCENT","013085H"]
[null,null,null,"FAISANT RAYMOND","012137V"]
[null,null,null,"FERNANDEZ ROBIN","141784G"]
[null,null,null,"FERRON JEAN MARC","164847G"]
[null,null,null,"FESTE MICHEL","169338N"]
[null,null,null,"FLEURY YVES","100521F"]
[null,null,null,"FONTAINE YANN","131886O"]
[null,null,null,"FOSSEY MATHIEU","168801E"]
[null,null,null,"FOUCRET STEPHANE","104154Y"]
[null,null,null,"FOURNIAL CHRISTIAN","150542H"]
[null,null,null,"FRANCOIS RENE","108288Y"]
[null,null,null,"FRANGNE PHILIPPE","165902D"]
[null,null,null,"FREGER XAVIER","168691K"]
[null,null,null,"GALAN JEAN CLAUDE","142631V"]
[null,null,null,"GARO NAEL","156465W"]
[null,null,null,"GARREAU CYRIL","147667H"]
[null,null,null,"GASCHY DAMIEN","160307X"]
[null,null,null,"GAUTIER ALAIN","169561F"]
[null,null,null,"GERMAIN CYRILLE","017461P"]
[null,null,null,"GERVAIS PHILIPPE","152579X"]
[null,null,null,"GESTIN JACQUES","154536Z"]
[null,null,null,"GEYER SERGE","017687H"]
[null,null,null,"GILLE PHILIPPE","102207B"]
[null,null,null,"GILLOT MARCEL","013242I"]
[null,null,null,"GLINEL MORTREUIL CLAUDE","165097D"]
[null,null,null,"GNOCCHI GIANPAOLO","124614W"]
[null,null,null,"GOARNISSON VALENTIN","162096R"]
[null,null,null,"GODILLE SYLVAIN","126213J"]
[null,null,null,"GONZALES JOSE","107057P"]
[null,null,null,"GOREGUES LOIC","143286A"]
[null,null,null,"GOSNON OLIVIER","127187V"]
[null,null,null,"GOUDIER DANIELLE","137446K"]
[null,null,null,"GOUGEAUD MICHEL","137819T"]
[null,null,null,"GOUSSETIS GEORGES","112008A"]
[null,null,null,"GOUSSIN JEAN PAUL","018086Q"]
[null,null,null,"GRANDSIRE ALAIN","158946S"]
[null,null,null,"GRASSIN MICHEL","143290E"]
[null,null,null,"GRENET LOUIS","141991F"]
[null,null,null,"GRENU GUY","156138Q"]
[null,null,null,"GRETILLAT XAVIER","138447X"]
[null,null,null,"GROSDEMANGE JULIEN","144620I"]
[null,null,null,"GUERET GERARD","018138Q"]
[null,null,null,"GUERIN DAVID","017939Z"]
[null,null,null,"GUEROULT DOMINIQUE","157731X"]
[null,null,null,"GUEROUT JEAN PIERRE","156477J"]
[null,null,null,"GUIGNON ERIC","017536M"]
[null,null,null,"GUIGNON JIM","017537N"]
[null,null,null,"GUILLAUME MICHEL","169779S"]
[null,null,null,"GUINCETRE FRANCOIS","143613P"]
[null,null,null,"GUYADER ERWAN","152484T"]
[null,null,null,"GUYADER GAEL","017653Z"]
[null,null,null,"HABRAN JEAN PIERRE","163902E"]
[null,null,null,"HAFED LAURENT","116626Q"]
[null,null,null,"HAQUIN HERVE","147303M"]
[null,null,null,"HAUBERDON RENE","140340S"]
[null,null,null,"HAUCK MICHEL","125710A"]
[null,null,null,"HAVEZ DAVID","154374Y"]
[null,null,null,"HAZART HAMEL GERARD","134863B"]
[null,null,null,"HENRY CATHERINE","156840D"]
[null,null,null,"HENRY SERGE","017637J"]
[null,null,null,"HEQUET JEAN FRANCOIS","172304M"]
[null,null,null,"HIDEE SEBASTIEN","172025J"]
[null,null,null,"HOMMET CHARLES","105787T"]
[null,null,null,"HONG PHI BANG","166245B"]
[null,null,null,"HORCHOLLES DAVID","018123B"]
[null,null,null,"HOREL CHRISTIAN","106832Y"]
[null,null,null,"HUARD SEBASTIEN","155987B"]
[null,null,null,"HUBERT CLAUDE","153902K"]
[null,null,null,"HUBERT YVON","161713A"]
[null,null,null,"HUE JEAN","140475X"]
[null,null,null,"HUET JEAN LOUIS","145695R"]
[null,null,null,"HUGER MICHEL","017614M"]
[null,null,null,"IPPOLITO PASCAL","018041X"]
[null,null,null,"JACQ LAURENT","017912Y"]
[null,null,null,"JAFFRAY THIERRY","104165J"]
[null,null,null,"JAMI M HAMED","168259Q"]
[null,null,null,"JAQUINANDI DANIEL","013391B"]
[null,null,null,"JUBLOT DENIS","017978M"]
[null,null,null,"JUMELIN ALEXIS","172609T"]
[null,null,null,"JUMELIN EMMANUEL","140473V"]
[null,null,null,"KAHOFER ARNIM","140034Y"]
[null,null,null,"KENZEY PATRICK","017485N"]
[null,null,null,"LALLEMAND DIDIER","017874M"]
[null,null,null,"LAMBERT EUDES","140033X"]
[null,null,null,"LANGEVIN THIERY","168815V"]
[null,null,null,"LANGLOIS CHRISTIAN","018105J"]
[null,null,null,"LANIEU JASON","163789G"]
[null,null,null,"LAPERT PATRICK","116636A"]
[null,null,null,"LAURENT PHILIPPE","112307N"]
[null,null,null,"LAURENT VALERY","017732A"]
[null,null,null,"LE CAER THIERRY","129144C"]
[null,null,null,"LE MESLE CHRISTOPHE","165122F"]
[null,null,null,"LE MOULEC ALAIN","135751F"]
[null,null,null,"LE MOULEC JOHNNY","135752G"]
[null,null,null,"LE RAILLER GERALD","151478A"]
[null,null,null,"LEBEGUE JEAN","157910R"]
[null,null,null,"LEBOUCHER PASCAL","126223T"]
[null,null,null,"LEBOURGEOIS PHILIPPE","017763F"]
[null,null,null,"LEBRETON ALAIN","013523D"]
[null,null,null,"LECANU JEAN MARC","169320T"]
[null,null,null,"LECLERC MARC","165970C"]
[null,null,null,"LECOEUR RENEE","145449F"]
[null,null,null,"LECORNE LAURENT","171962Q"]
[null,null,null,"LEDUC PATRICK","142969V"]
[null,null,null,"LEDUEY LUDOVIC","110509J"]
[null,null,null,"LEFEBVRE BERNARD","159458Z"]
[null,null,null,"LEFEVRE PHILIPPE","017875N"]
[null,null,null,"LEFEVRE YANNICK","147057V"]
[null,null,null,"LEGEMBRE KILLIAN","171482T"]
[null,null,null,"LEGENDRE CEDRIC","011123V"]
[null,null,null,"LEGENDRE CHARLES","153994K"]
[null,null,null,"LEGENDRE GERARD","131482A"]
[null,null,null,"LEGENDRE NATHAN","148558B"]
[null,null,null,"LEGRAND PHILIPPE","166852L"]
[null,null,null,"LEGRET ALEXIAN","144318S"]
[null,null,null,"LEHARIVEL DENIS","124649F"]
[null,null,null,"LEJEUNE BRUNO","166608W"]
[null,null,null,"LELEVRIER MICHEL","153100N"]
[null,null,null,"LELIEVRE ANTOINE","166141N"]
[null,null,null,"LELOIR MICHEL","017997F"]
[null,null,null,"LEMOIGNE PIERRE","127747J"]
[null,null,null,"LENOIR JEAN MARC","169351C"]
[null,null,null,"LEPINAY PIERRE","017597V"]
[null,null,null,"LEPLANOIS VIRGINIE","169234A"]
[null,null,null,"LEPORQ FRANCOIS","131887P"]
[null,null,null,"LEPRETRE BERNARD","164248F"]
[null,null,null,"LEROI JEAN CLAUDE","147405Y"]
[null,null,null,"LESCAN JACQUES","138167D"]
[null,null,null,"LESELLIER PASCAL","017786C"]
[null,null,null,"LETELLIER GILLES","172274E"]
[null,null,null,"LETULLIER BRUNO","135753H"]
[null,null,null,"LEVACHER STEPHANE","120314M"]
[null,null,null,"LEVIEUX AURELIEN","163707S"]
[null,null,null,"LEVILLAIN BEURIOT THOMAS","166696R"]
[null,null,null,"LHEUREUX RICHARD","133458A"]
[null,null,null,"LIARD BERNARD","106833Z"]
[null,null,null,"LIBERT LOUIS PIERRE","147566Y"]
[null,null,null,"LINGRAND BERNARD","162572J"]
[null,null,null,"LOMBARD PATRICK","142975B"]
[null,null,null,"LORGET EMMANUEL","144781N"]
[null,null,null,"LORIN JIMMY","011876U"]
[null,null,null,"LOUIS ANDRE","171961P"]
[null,null,null,"LOURSEL ALAIN","017731Z"]
[null,null,null,"LOZAC OLIVIER","171890M"]
[null,null,null,"MAGNAN JEAN LUC","018043Z"]
[null,null,null,"MAHEUT ALEXANDRE","160531Q"]
[null,null,null,"MAHIEU NORBERT","122711R"]
[null,null,null,"MAISON MICHEL","150113R"]
[null,null,null,"MARCHAIS PHILIPPE","106835B"]
[null,null,null,"MARCHAIS RAPHAEL","171976F"]
[null,null,null,"MARCIENNE JEAN BAPTISTE","172502C"]
[null,null,null,"MARECHAL LAURENT","169559D"]
[null,null,null,"MARGERIE ERIC","168814T"]
[null,null,null,"MARRE JEAN CLAUDE","018002K"]
[null,null,null,"MARTIN JEAN CHRISTOPHE","017799P"]
[null,null,null,"MARTINEAU PATRICE","169560E"]
[null,null,null,"MARTINS JOSE BRAZ","154240C"]
[null,null,null,"MARTORY PASCAL","017664K"]
[null,null,null,"MARTORY PIERRE","144782O"]
[null,null,null,"MARY JEAN CLAUDE","153309Q"]
[null,null,null,"MASSON JEAN PIERRE","158108G"]
[null,null,null,"MATEOS RAYMOND","126235F"]
[null,null,null,"MAULIEN AXEL","170827G"]
[null,null,null,"MAUNOURY LAURENT","146122C"]
[null,null,null,"MAZE JEAN PIERRE","137816Q"]
[null,null,null,"MEGNAN JEAN PIERRE","133889P"]
[null,null,null,"MEMMI GIANLUCA","168681Z"]
[null,null,null,"MERCET HUGUES","017744M"]
[null,null,null,"MERETTE MICHEL","146431Z"]
[null,null,null,"MICHAULT MARC","163171K"]
[null,null,null,"MICHON PHILIPPE","165898Z"]
[null,null,null,"MIGA LAURENT","149312W"]
[null,null,null,"MILLET DANIEL","017867F"]
[null,null,null,"MINAULT JACQUES","144302C"]
[null,null,null,"MINOUX JOEL","170818X"]
[null,null,null,"MIRKOVIC MICHEL","147085A"]
[null,null,null,"MOLINA CHRISTIAN","145457N"]
[null,null,null,"MONNIER WILLIAM","172325K"]
[null,null,null,"MONTADOR JEAN GABRIEL","131483B"]
[null,null,null,"MONTAGNE JEAN MARIE","168813S"]
[null,null,null,"MOREL FRANCIS","142932K"]
[null,null,null,"MOREL PATRICE","138381J"]
[null,null,null,"MORLET JEAN","170315A"]
[null,null,null,"MOTTEAU LAURENT","156736Q"]
[null,null,null,"MOULIN DANIEL","159291S"]
[null,null,null,"MOUSSET DAMIEN","170094K"]
[null,null,null,"NEVEU LAURENT","100555N"]
[null,null,null,"NEVEU PATRICK","168019E"]
[null,null,null,"NICOLAS REMY","160828N"]
[null,null,null,"NOEL GERARD","126227X"]
[null,null,null,"NOLLAND CHRISTIAN","137340I"]
[null,null,null,"NOTHEAUX JACQUES","157733Z"]
[null,null,null,"NOWAK MICHAEL","017827R"]
[null,null,null,"OSTOR FRANCK","118847B"]
[null,null,null,"OUMAZIZ MARC","169327B"]
[null,null,null,"PAILLIE CYRILLE","134656C"]
[null,null,null,"PAJON MARIE PIERRE","150068S"]
[null,null,null,"PARENT ALAIN","017655B"]
[null,null,null,"PARIS OLIVIER","163529Z"]
[null,null,null,"PARMENTIER FRANC","017477F"]
[null,null,null,"PARNY MATYS","169344V"]
[null,null,null,"PATOUREAUX THIERRY","166736K"]
[null,null,null,"PATRY BRUNO","168812R"]
[null,null,null,"PELLETIER CHRISTIAN","170121P"]
[null,null,null,"PERRIER JEAN","017694O"]
[null,null,null,"PERROT JACKY","152580Y"]
[null,null,null,"PETIT JOHANN","017604C"]
[null,null,null,"PETIT SERGE","168803G"]
[null,null,null,"PETITGRAND CLAUDE","165969B"]
[null,null,null,"PETITON YANN","100516A"]
[null,null,null,"PHILIPPE JEAN","149830J"]
[null,null,null,"PICANDET FRANCOIS","149401S"]
[null,null,null,"PICARD ANDRE","148806W"]
[null,null,null,"PICARD ARTHUR","160869H"]
[null,null,null,"PICARD CATHERINE","163870V"]
[null,null,null,"PICARD SERGE","167868Q"]
[null,null,null,"PICQUENOT JEAN PAUL","145453J"]
[null,null,null,"PIERREL BRUNO","017817H"]
[null,null,null,"PIETRZYK JEAN PIERRE","155481B"]
[null,null,null,"PINEL RICHARD","147140K"]
[null,null,null,"PITOIS FRANCIS","138573T"]
[null,null,null,"PITZ GEOFFROY","128613R"]
[null,null,null,"PLESSIS GERARD","106837D"]
[null,null,null,"PLOUARD ROLAND","169328C"]
[null,null,null,"POGNON MARIUS","172029N"]
[null,null,null,"POIGNYE PATRICK","142977D"]
[null,null,null,"POLLET DIDIER","112582C"]
[null,null,null,"PONTHIEUX CHRISTIAN","017730Y"]
[null,null,null,"PORET ANDRE","145700W"]
[null,null,null,"POUCHIN MAX","018050G"]
[null,null,null,"POUL RAYMOND","127825J"]
[null,null,null,"POULAIN JOSE","169329D"]
[null,null,null,"POULAIN YANNICK","169330E"]
[null,null,null,"POULET MARC","122687T"]
[null,null,null,"POUX JEAN LOUIS","147997R"]
[null,null,null,"PREVOST PATRICE","115463X"]
[null,null,null,"PREVOST PIERRE","117900Q"]
[null,null,null,"PREVOST ROGER","131485D"]
[null,null,null,"PRIEUR SEBASTIEN","118093B"]
[null,null,null,"PRIN MICHAEL","149403V"]
[null,null,null,"PROENCA ARMANDO","165901C"]
[null,null,null,"PRUVOST MICHEL","137451P"]
[null,null,null,"PUSKAS MATTHIEU","110520U"]
[null,null,null,"QUEILLE RICHARD","162896L"]
[null,null,null,"QUESNOT LIONNEL","140480C"]
[null,null,null,"QUILLAUD GERARD","159709X"]
[null,null,null,"QUILLAUD PAULETTE","159713B"]
[null,null,null,"RACHET ALAIN","017909V"]
[null,null,null,"RAMDANI IBRAHIM","154864F"]
[null,null,null,"REAUDIN GERARD","017727V"]
[null,null,null,"REICHSTADT ERIC","163598Z"]
[null,null,null,"RENAULT LOUIS","170500B"]
[null,null,null,"RIBOULET LAURENT","116625P"]
[null,null,null,"RIGOLET GEORGES","141079D"]
[null,null,null,"RIPOLL JEAN YVES","118084S"]
[null,null,null,"RIVIERE CLAUDE","159757Z"]
[null,null,null,"RIVOAL CYRILLE","140476Y"]
[null,null,null,"ROBERGE BRUNO","017572W"]
[null,null,null,"ROBERT PIERRE","134861Z"]
[null,null,null,"ROBIN JACQUES","124617Z"]
[null,null,null,"ROBIN SEBASTIEN","131519L"]
[null,null,null,"ROHART THIERRY","148983N"]
[null,null,null,"ROLLAND ALAIN","144165V"]
[null,null,null,"ROMAIN ANTOINE","166144R"]
[null,null,null,"ROMAIN PATRICK","121127T"]
[null,null,null,"ROMELE ROLLAND","171934K"]
[null,null,null,"RONDU JACQUES","155024E"]
[null,null,null,"ROQUIGNY REMY","127143D"]
[null,null,null,"ROSCHBACH THIERRY","144717B"]
[null,null,null,"ROSSI FRANCIS","172007P"]
[null,null,null,"ROUSSEAU GERARD","171005A"]
[null,null,null,"ROYE EMMANUEL","171889L"]
[null,null,null,"ROZE JACQUES","017974I"]
[null,null,null,"RUEDA RENE","017721P"]
[null,null,null,"SAINT REQUIER CHRISTIAN","167738Z"]
[null,null,null,"SAMMUT JEAN CLAUDE","147880P"]
[null,null,null,"SAMSON RONALD","017495X"]
[null,null,null,"SANDT CHRISTIAN","149174W"]
[null,null,null,"SANNIER SERGE","017829T"]
[null,null,null,"SAUVAGE JEAN PAUL","158548K"]
[null,null,null,"SAUVAGE XAVIER","166458H"]
[null,null,null,"SCHMITT CLAUDE","017478G"]
[null,null,null,"SCHWARTZ ALAIN","149904P"]
[null,null,null,"SEGARD PAUL","170495W"]
[null,null,null,"SEGUIN PATRICK","171974D"]
[null,null,null,"SENCERT DIDIER","109089T"]
[null,null,null,"SIMON ANDRE","122927Z"]
[null,null,null,"SIMON THOMAS","157254D"]
[null,null,null,"SOLMON HERVE","017626Y"]
[null,null,null,"SORTAIS CLAUDE","017602A"]
[null,null,null,"SOULLIER GINO","164003P"]
[null,null,null,"SPANG PHILIPPE","170314Z"]
[null,null,null,"STAIGRE JEROME","018141T"]
[null,null,null,"STEELS JEAN MICHEL","172579L"]
[null,null,null,"SURLEMONT JEROME","172205E"]
[null,null,null,"TALBOT MICHEL","017544U"]
[null,null,null,"TALBOT REGIS","170812Q"]
[null,null,null,"TELLIER BRUNO","143284Y"]
[null,null,null,"THIRY ROBERT","017818I"]
[null,null,null,"THOMAS JEANNE","163589P"]
[null,null,null,"THOMAS PIERRE","166071M"]
[null,null,null,"THORY MICHEL","126230A"]
[null,null,null,"THUILLIER JEAN CLAUDE","017671R"]
[null,null,null,"THUILLIER PIERRE","136729V"]
[null,null,null,"TILLON YVES","153297C"]
[null,null,null,"TISSOT JEAN MICHEL","149889Y"]
[null,null,null,"TOSTAIN ALEX","169973D"]
[null,null,null,"TOUCHAIS JEAN YVES","170915C"]
[null,null,null,"TOURNEBIZE BENJAMIN","172312W"]
[null,null,null,"TOUTAIN REMI","159676L"]
[null,null,null,"TREHET SERGE","018140S"]
[null,null,null,"TROUSSIER PIERRE","017498A"]
[null,null,null,"TY JOSHUA","161122H"]
[null,null,null,"ULRICH ALAIN","101687B"]
[null,null,null,"VALLE JOEL","107251B"]
[null,null,null,"VALLIER RENE","166048M"]
[null,null,null,"VALLOIS CHRISTOPHE","166311Y"]
[null,null,null,"VARACHE ALBAN","100599F"]
[null,null,null,"VARACHE SERGE","017650W"]
[null,null,null,"VARIGNON DOMINIQUE","131487F"]
[null,null,null,"VARIN ODETTE","137522I"]
[null,null,null,"VASSEUR YANNICK","122848Y"]
[null,null,null,"VAUR PHILIPPE","104066O"]
[null,null,null,"VERDREL DIDIER","139912G"]
[null,null,null,"VEREL SEBASTIEN","141213H"]
[null,null,null,"VERITE LEO","160306W"]
[null,null,null,"VERITE STEPHANE","160305V"]
[null,null,null,"VICTORIA VINCENT","100615V"]
[null,null,null,"VIGNE PIERRE","018005N"]
[null,null,null,"VIMBERT JEAN","017991Z"]
[null,null,null,"VINCENT DANIEL","126236G"]
[null,null,null,"VOYER MICHEL","017856U"]
[null,null,null,"VUILLEQUEY GEORGES","166757H"]
[null,null,null,"WILLEMYNS JACK","126237H"]
[null,null,null,"ZIMMERLIN DANIEL","017923J"]
[null,null,null,"ZWAENEPOEL PHILIPPE","124290K"]

{"sheet":"Match 01","index":1,"n_rows":25,"n_cols":14,"rows_kept":25,"cut":false,"hidden":false,"merged":[[25,0,25,13],[22,1,22,2],[22,3,22,5],[22,7,22,8],[22,9,22,11],[24,0,24,14],[5,0,9,1],[5,2,6,2],[5,3,6,3],[5,4,6,4],[5,5,6,6],[18,0,19,0],[10,2,10,3],[14,1,15,1],[16,1,17,1],[18,1,19,1],[18,3,19,3],[0,0,0,13],[4,4,4,6],[7,2,7,3],[7,4,7,7],[2,4,2,13],[2,0,3,1],[4,8,7,8],[4,10,4,13],[5,9,6,9],[16,3,17,3],[12,7,13,7],[14,0,15,0],[16,0,17,0],[12,0,13,0],[12,1,13,1],[12,3,13,3],[12,4,13,4],[12,5,13,5],[12,6,13,6],[14,3,15,3],[14,6,15,6],[14,7,15,7],[16,7,17,7],[18,7,19,7],[14,4,15,4],[14,5,15,5],[16,5,17,5],[16,6,17,6],[18,4,19,4],[18,5,19,5],[18,6,19,6],[12,10,13,10],[12,11,13,11],[12,12,13,12],[12,13,13,13],[16,9,17,9],[16,10,17,10],[16,11,17,11],[16,12,17,12],[18,9,19,9],[18,10,19,10],[18,11,19,11],[18,12,19,12],[18,13,19,13],[16,13,17,13],[5,10,5,13],[7,10,7,13],[6,10,6,13],[10,8,10,9],[9,4,9,6],[12,9,13,9],[14,12,15,12],[14,13,15,13],[16,4,17,4],[10,4,10,6],[9,10,9,12],[10,10,10,12],[14,9,15,9],[14,10,15,10],[14,11,15,11]]}
["CHAMPIONNAT DE FRANCE   -   3 BANDES   -   EQUIPES DE CLUB"]
[]
["Version : 07\ndu : 08/10/2020",null,"Match n° 2",null,"LIGUE DE NORMANDIE DE BILLARD   -   PHASE QUALIFICATIVE"]
[]
[null,null,"Match n° 3",null,"Division",null,null,null,"Lieu de l'épreuve","Club"]
["u",null,null,null,null,null,null,null,null,"n°, rue",{"$f":"IF(K5<>\"\",VLOOKUP(K5,Données!$H$15:$K$36,2,FALSE),\"\")","v":""}]
[null,null,null,null,null,null,null,null,null,null,{"$f":"IF(K5<>\"\",VLOOKUP(K5,Données!$H$15:$K$36,3,FALSE),\"\")","v":""}]
[null,null,"Rencontre du :",null,null,null,null,null,null,"Code   Ville",{"$f":"IF(K5<>\"\",VLOOKUP(K5,Données!$H$15:$K$36,4,FALSE),\"\")","v":""}]
[]
[null,null,null,null,"Nom du club",null,null,"N° équipe",null,null,"Nom du club",null,null,"N° équipe"]
[null,null,"Equipe recevante",null,null,null,null,null,"Equipe visiteuse"]
["Distance","Format du\nBillard","Nom   -   Prénom\nLicence","Points","Reprises","Série","Moyenne","Points de\nmatch","Nom   -   Prénom\nLicence","Points","Reprises","Série","Moyenne","Points de\nmatch"]
[{"$f":"IF(H5<>\"\",VLOOKUP($H$5,Données!$G$6:$K$10,2,FALSE),\"\")","v":""},null,null,null,null,null,{"$f":"IF(ISERROR(D13/E13),\"\",D13/E13)","v":""},{"$f":"IF(OR(G13=\"\",M13=\"\"),\"\",IF(D13>J13,2,IF(D13=J13,1,IF(D13<J13,0))))","v":""},null,null,{"$f":"IF(E13>0,E13,\"\")","v":""},null,{"$f":"IF(ISERROR(J13/K13),\"\",J13/K13)","v":""},{"$f":"IF(AND(H13<>\"\",J13<>\"\"),2-H13,\"\")","v":""}]
[null,null,{"$f":"IF(C13<>\"\",VLOOKUP(C13,licence,2,FALSE),\"\")","v":""},null,null,null,null,null,{"$f":"IF(I13<>\"\",VLOOKUP(I13,licence,2,FALSE),\"\")","v":""}]
[{"$f":"IF(H5<>\"\",VLOOKUP($H$5,Données!$G$6:$K$10,3,FALSE),\"\")","v":""},null,null,null,null,null,{"$f":"IF(ISERROR(D15/E15),\"\",D15/E15)","v":""},{"$f":"IF(OR(G15=\"\",M15=\"\"),\"\",IF(D15>J15,2,IF(D15=J15,1,IF(D15<J15,0))))","v":""},null,null,{"$f":"IF(E15>0,E15,\"\")","v":""},null,{"$f":"IF(ISERROR(J15/K15),\"\",J15/K15)","v":""},{"$f":"IF(AND(H15<>\"\",J15<>\"\"),2-H15,\"\")","v":""}]
[null,null,{"$f":"IF(C15<>\"\",VLOOKUP(C15,licence,2,FALSE),\"\")","v":""},null,null,null,null,null,{"$f":"IF(I15<>\"\",VLOOKUP(I15,licence,2,FALSE),\"\")","v":""}]
[{"$f":"IF(H5<>\"\",VLOOKUP($H$5,Données!$G$6:$K$10,4,FALSE),\"\")","v":""},null,null,null,null,null,{"$f":"IF(ISERROR(D17/E17),\"\",D17/E17)","v":""},{"$f":"IF(OR(G17=\"\",M17=\"\"),\"\",IF(D17>J17,2,IF(D17=J17,1,IF(D17<J17,0))))","v":""},null,null,{"$f":"IF(E17>0,E17,\"\")","v":""},null,{"$f":"IF(ISERROR(J17/K17),\"\",J17/K17)","v":""},{"$f":"IF(AND(H17<>\"\",J17<>\"\"),2-H17,\"\")","v":""}]
[null,null,{"$f":"IF(C17<>\"\",VLOOKUP(C17,licence,2,FALSE),\"\")","v":""},null,null,null,null,null,{"$f":"IF(I17<>\"\",VLOOKUP(I17,licence,2,FALSE),\"\")","v":""}]
[{"$f":"IF(H5<>\"\",VLOOKUP($H$5,Données!$G$6:$K$10,5,FALSE),\"\")","v":""},null,null,null,null,null,{"$f":"IF(ISERROR(D19/E19),\"\",D19/E19)","v":""},{"$f":"IF(OR(G19=\"\",M19=\"\"),\"\",IF(D19>J19,2,IF(D19=J19,1,IF(D19<J19,0))))","v":""},null,null,{"$f":"IF(E19>0,E19,\"\")","v":""},null,{"$f":"IF(ISERROR(J19/K19),\"\",J19/K19)","v":""},{"$f":"IF(AND(H19<>\"\",J19<>\"\"),2-H19,\"\")","v":""}]
[null,null,{"$f":"IF(C19<>\"\",VLOOKUP(C19,licence,2,FALSE),\"\")","v":""},null,null,null,null,null,{"$f":"IF(I19<>\"\",VLOOKUP(I19,licence,2,FALSE),\"\")","v":""}]
[null,null,"Totaux",{"$f":"SUM(D13:D20)","v":0},{"$f":"SUM(E13:E19)","v":0},null,null,{"$f":"SUM(H13:H19)","v":0},"Totaux",{"$f":"SUM(J13:J20)","v":0},{"$f":"SUM(K13:K19)","v":0},null,null,{"$f":"SUM(N13:N19)","v":0}]
[]
[null,"Signature du capitaine",null,null,null,null,null,"Signature du capitaine"]
[]
["Ces résultats sont à transmettre (sous 48 heures) à Philippe Lebourgeois mail :  lebourgeois.mp@gmail.com"]

{"sheet":"Match 02","index":2,"n_rows":25,"n_cols":14,"rows_kept":25,"cut":false,"hidden":false,"merged":[[24,0,24,14],[0,0,0,13],[4,4,4,6],[7,2,7,3],[7,4,7,7],[2,4,2,13],[3,0,9,1],[4,8,7,8],[4,10,4,13],[5,10,5,13],[7,10,7,13],[12,9,13,9],[12,10,13,10],[10,2,10,3],[10,8,10,9],[5,9,6,9],[6,10,6,13],[9,4,9,6],[10,4,10,6],[9,10,9,12],[10,10,10,12],[14,13,15,13],[14,0,15,0],[14,1,15,1],[14,3,15,3],[14,4,15,4],[14,5,15,5],[14,6,15,6],[14,7,15,7],[14,9,15,9],[12,13,13,13],[12,0,13,0],[12,1,13,1],[12,3,13,3],[12,4,13,4],[12,5,13,5],[12,11,13,11],[12,12,13,12],[12,6,13,6],[12,7,13,7],[14,11,15,11],[14,12,15,12],[16,9,17,9],[16,10,17,10],[16,11,17,11],[16,12,17,12],[14,10,15,10],[16,13,17,13],[16,0,17,0],[16,1,17,1],[16,3,17,3],[16,4,17,4],[16,5,17,5],[16,7,17,7],[16,6,17,6],[25,0,25,13],[18,7,19,7],[18,9,19,9],[18,10,19,10],[18,11,19,11],[18,12,19,12],[18,13,19,13],[22,9,22,11],[18,0,19,0],[18,1,19,1],[18,3,19,3],[22,1,22,2],[22,3,22,5],[22,7,22,8],[18,4,19,4],[18,5,19,5],[18,6,19,6]]}
["CHAMPIONNAT DE FRANCE   -   3 BANDES   -   EQUIPES DE CLUB"]
[]
[null,null,"Match n° 1",null,"LIGUE DE NORMANDIE DE BILLARD   -   PHASE QUALIFICATIVE"]
["v"]
[null,null,"Match n° 3",null,"Division",null,null,{"$f":"IF('Match 01'!H5<>\"\",'Match 01'!H5,\"\")","v":""},"Lieu de l'épreuve","Club",{"$f":"IF('Match 01'!K5<>\"\",'Match 01'!K5,\"\")","v":""}]
[null,null,null,null,null,null,null,null,null,"n°, rue",{"$f":"IF('Match 01'!K6<>\"\",'Match 01'!K6,\"\")","v":""}]
[null,null,null,null,null,null,null,null,null,null,{"$f":"IF('Match 01'!K7<>\"\",'Match 01'!K7,\"\")","v":""}]
[null,null,"Rencontre du :",null,{"$f":"IF('Match 01'!E8<>\"\",'Match 01'!E8,\"\")","v":""},null,null,null,null,"Code   Ville",{"$f":"IF('Match 01'!K8<>\"\",'Match 01'!K8,\"\")","v":""}]
[]
[null,null,null,null,"Nom du club",null,null,"N° équipe",null,null,"Nom du club",null,null,"N° équipe"]
[null,null,"Equipe recevante",null,null,null,null,null,"Equipe visiteuse"]
["Distance","Format du\nBillard","Nom   -   Prénom\nLicence","Points","Reprises","Série","Moyenne","Points de\nmatch","Nom   -   Prénom\nLicence","Points","Reprises","Série","Moyenne","Points de\nmatch"]
[{"$f":"IF(H5<>\"\",VLOOKUP($H$5,Données!$G$6:$K$10,2,FALSE),\"\")","v":""},null,null,null,null,null,{"$f":"IF(ISERROR(D13/E13),\"\",D13/E13)","v":""},{"$f":"IF(OR(G13=\"\",M13=\"\"),\"\",IF(D13>J13,2,IF(D13=J13,1,IF(D13<J13,0))))","v":""},null,null,{"$f":"IF(E13>0,E13,\"\")","v":""},null,{"$f":"IF(ISERROR(J13/K13),\"\",J13/K13)","v":""},{"$f":"IF(AND(H13<>\"\",J13<>\"\"),2-H13,\"\")","v":""}]
[null,null,{"$f":"IF(C13<>\"\",VLOOKUP(C13,licence,2,FALSE),\"\")","v":""},null,null,null,null,null,{"$f":"IF(I13<>\"\",VLOOKUP(I13,licence,2,FALSE),\"\")","v":""}]
[{"$f":"IF(H5<>\"\",VLOOKUP($H$5,Données!$G$6:$K$10,3,FALSE),\"\")","v":""},null,null,null,null,null,{"$f":"IF(ISERROR(D15/E15),\"\",D15/E15)","v":""},{"$f":"IF(OR(G15=\"\",M15=\"\"),\"\",IF(D15>J15,2,IF(D15=J15,1,IF(D15<J15,0))))","v":""},null,null,{"$f":"IF(E15>0,E15,\"\")","v":""},null,{"$f":"IF(ISERROR(J15/K15),\"\",J15/K15)","v":""},{"$f":"IF(AND(H15<>\"\",J15<>\"\"),2-H15,\"\")","v":""}]
[null,null,{"$f":"IF(C15<>\"\",VLOOKUP(C15,licence,2,FALSE),\"\")","v":""},null,null,null,null,null,{"$f":"IF(I15<>\"\",VLOOKUP(I15,licence,2,FALSE),\"\")","v":""}]
[{"$f":"IF(H5<>\"\",VLOOKUP($H$5,Données!$G$6:$K$10,4,FALSE),\"\")","v":""},null,null,null,null,null,{"$f":"IF(ISERROR(D17/E17),\"\",D17/E17)","v":""},{"$f":"IF(OR(G17=\"\",M17=\"\"),\"\",IF(D17>J17,2,IF(D17=J17,1,IF(D17<J17,0))))","v":""},null,null,{"$f":"IF(E17>0,E17,\"\")","v":""},null,{"$f":"IF(ISERROR(J17/K17),\"\",J17/K17)","v":""},{"$f":"IF(AND(H17<>\"\",J17<>\"\"),2-H17,\"\")","v":""}]
[null,null,{"$f":"IF(C17<>\"\",VLOOKUP(C17,licence,2,FALSE),\"\")","v":""},null,null,null,null,null,{"$f":"IF(I17<>\"\",VLOOKUP(I17,licence,2,FALSE),\"\")","v":""}]
[{"$f":"IF(H5<>\"\",VLOOKUP($H$5,Données!$G$6:$K$10,5,FALSE),\"\")","v":""},null,null,null,null,null,{"$f":"IF(ISERROR(D19/E19),\"\",D19/E19)","v":""},{"$f":"IF(OR(G19=\"\",M19=\"\"),\"\",IF(D19>J19,2,IF(D19=J19,1,IF(D19<J19,0))))","v":""},null,null,{"$f":"IF(E19>0,E19,\"\")","v":""},null,{"$f":"IF(ISERROR(J19/K19),\"\",J19/K19)","v":""},{"$f":"IF(AND(H19<>\"\",J19<>\"\"),2-H19,\"\")","v":""}]
[null,null,{"$f":"IF(C19<>\"\",VLOOKUP(C19,licence,2,FALSE),\"\")","v":""},null,null,null,null,null,{"$f":"IF(I19<>\"\",VLOOKUP(I19,licence,2,FALSE),\"\")","v":""}]
[null,null,"Totaux",{"$f":"SUM(D13:D20)","v":0},{"$f":"SUM(E13:E19)","v":0},null,null,{"$f":"SUM(H13:H19)","v":0},"Totaux",{"$f":"SUM(J13:J20)","v":0},{"$f":"SUM(K13:K19)","v":0},null,null,{"$f":"SUM(N13:N19)","v":0}]
[]
[null,"Signature du capitaine",null,null,null,null,null,"Signature du capitaine"]
[]
["Ces résultats sont à transmettre (sous 48 heures)  à Philippe LEBOURGEOIS  mail : lebourgeois.mp@gmail.com"]

{"sheet":"Match 03","index":3,"n_rows":25,"n_cols":14,"rows_kept":25,"cut":false,"hidden":false,"merged":[[24,0,24,14],[0,0,0,13],[4,4,4,6],[7,2,7,3],[7,4,7,7],[2,4,2,13],[3,0,9,1],[4,8,7,8],[4,10,4,13],[5,10,5,13],[7,10,7,13],[10,2,10,3],[10,8,10,9],[5,9,6,9],[6,10,6,13],[9,4,9,6],[10,4,10,6],[9,10,9,12],[10,10,10,12],[14,11,15,11],[14,12,15,12],[12,9,13,9],[12,10,13,10],[12,11,13,11],[12,12,13,12],[14,13,15,13],[14,0,15,0],[14,1,15,1],[14,3,15,3],[14,4,15,4],[14,5,15,5],[14,9,15,9],[14,10,15,10],[14,6,15,6],[14,7,15,7],[12,13,13,13],[12,0,13,0],[12,1,13,1],[12,3,13,3],[12,4,13,4],[12,5,13,5],[12,6,13,6],[12,7,13,7],[16,13,17,13],[16,0,17,0],[16,1,17,1],[16,3,17,3],[16,4,17,4],[16,5,17,5],[16,6,17,6],[16,7,17,7],[16,9,17,9],[16,10,17,10],[22,3,22,5],[22,7,22,8],[22,9,22,11],[18,3,19,3],[18,4,19,4],[18,13,19,13],[18,12,19,12],[18,5,19,5],[18,6,19,6],[18,0,19,0],[18,1,19,1],[22,1,22,2],[16,11,17,11],[16,12,17,12],[25,0,25,13],[18,7,19,7],[18,9,19,9],[18,10,19,10],[18,11,19,11]]}
["CHAMPIONNAT DE FRANCE   -   3 BANDES   -   EQUIPES DE CLUB"]
[]
[null,null,"Match n° 1",null,"LIGUE DE NORMANDIE DE BILLARD   -   PHASE QUALIFICATIVE"]
["w"]
[null,null,"Match n° 2",null,"Division",null,null,{"$f":"IF('Match 01'!H5<>\"\",'Match 01'!H5,\"\")","v":""},"Lieu de l'épreuve","Club",{"$f":"IF('Match 01'!K5<>\"\",'Match 01'!K5,\"\")","v":""}]
[null,null,null,null,null,null,null,null,null,"n°, rue",{"$f":"IF('Match 01'!K6<>\"\",'Match 01'!K6,\"\")","v":""}]
[null,null,null,null,null,null,null,null,null,null,{"$f":"IF('Match 01'!K7<>\"\",'Match 01'!K7,\"\")","v":""}]
[null,null,"Rencontre du :",null,{"$f":"IF('Match 01'!E8<>\"\",'Match 01'!E8,\"\")","v":""},null,null,null,null,"Code   Ville",{"$f":"IF('Match 01'!K8<>\"\",'Match 01'!K8,\"\")","v":""}]
[]
[null,null,null,null,"Nom du club",null,null,"N° équipe",null,null,"Nom du club",null,null,"N° équipe"]
[null,null,"Equipe recevante",null,null,null,null,null,"Equipe visiteuse"]
["Distance","Format du\nBillard","Nom   -   Prénom\nLicence","Points","Reprises","Série","Moyenne","Points de\nmatch","Nom   -   Prénom\nLicence","Points","Reprises","Série","Moyenne","Points de\nmatch"]
[{"$f":"IF(H5<>\"\",VLOOKUP($H$5,Données!$G$6:$K$10,2,FALSE),\"\")","v":""},null,null,null,null,null,{"$f":"IF(ISERROR(D13/E13),\"\",D13/E13)","v":""},{"$f":"IF(OR(G13=\"\",M13=\"\"),\"\",IF(D13>J13,2,IF(D13=J13,1,IF(D13<J13,0))))","v":""},null,null,{"$f":"IF(E13>0,E13,\"\")","v":""},null,{"$f":"IF(ISERROR(J13/K13),\"\",J13/K13)","v":""},{"$f":"IF(AND(H13<>\"\",J13<>\"\"),2-H13,\"\")","v":""}]
[null,null,{"$f":"IF(C13<>\"\",VLOOKUP(C13,licence,2,FALSE),\"\")","v":""},null,null,null,null,null,{"$f":"IF(I13<>\"\",VLOOKUP(I13,licence,2,FALSE),\"\")","v":""}]
[{"$f":"IF(H5<>\"\",VLOOKUP($H$5,Données!$G$6:$K$10,3,FALSE),\"\")","v":""},null,null,null,null,null,{"$f":"IF(ISERROR(D15/E15),\"\",D15/E15)","v":""},{"$f":"IF(OR(G15=\"\",M15=\"\"),\"\",IF(D15>J15,2,IF(D15=J15,1,IF(D15<J15,0))))","v":""},null,null,{"$f":"IF(E15>0,E15,\"\")","v":""},null,{"$f":"IF(ISERROR(J15/K15),\"\",J15/K15)","v":""},{"$f":"IF(AND(H15<>\"\",J15<>\"\"),2-H15,\"\")","v":""}]
[null,null,{"$f":"IF(C15<>\"\",VLOOKUP(C15,licence,2,FALSE),\"\")","v":""},null,null,null,null,null,{"$f":"IF(I15<>\"\",VLOOKUP(I15,licence,2,FALSE),\"\")","v":""}]
[{"$f":"IF(H5<>\"\",VLOOKUP($H$5,Données!$G$6:$K$10,4,FALSE),\"\")","v":""},null,null,null,null,null,{"$f":"IF(ISERROR(D17/E17),\"\",D17/E17)","v":""},{"$f":"IF(OR(G17=\"\",M17=\"\"),\"\",IF(D17>J17,2,IF(D17=J17,1,IF(D17<J17,0))))","v":""},null,null,{"$f":"IF(E17>0,E17,\"\")","v":""},null,{"$f":"IF(ISERROR(J17/K17),\"\",J17/K17)","v":""},{"$f":"IF(AND(H17<>\"\",J17<>\"\"),2-H17,\"\")","v":""}]
[null,null,{"$f":"IF(C17<>\"\",VLOOKUP(C17,licence,2,FALSE),\"\")","v":""},null,null,null,null,null,{"$f":"IF(I17<>\"\",VLOOKUP(I17,licence,2,FALSE),\"\")","v":""}]
[{"$f":"IF(H5<>\"\",VLOOKUP($H$5,Données!$G$6:$K$10,5,FALSE),\"\")","v":""},null,null,null,null,null,{"$f":"IF(ISERROR(D19/E19),\"\",D19/E19)","v":""},{"$f":"IF(OR(G19=\"\",M19=\"\"),\"\",IF(D19>J19,2,IF(D19=J19,1,IF(D19<J19,0))))","v":""},null,null,{"$f":"IF(E19>0,E19,\"\")","v":""},null,{"$f":"IF(ISERROR(J19/K19),\"\",J19/K19)","v":""},{"$f":"IF(AND(H19<>\"\",J19<>\"\"),2-H19,\"\")","v":""}]
[null,null,{"$f":"IF(C19<>\"\",VLOOKUP(C19,licence,2,FALSE),\"\")","v":""},null,null,null,null,null,{"$f":"IF(I19<>\"\",VLOOKUP(I19,licence,2,FALSE),\"\")","v":""}]
[null,null,"Totaux",{"$f":"SUM(D13:D20)","v":0},{"$f":"SUM(E13:E19)","v":0},null,null,{"$f":"SUM(H13:H19)","v":0},"Totaux",{"$f":"SUM(J13:J20)","v":0},{"$f":"SUM(K13:K19)","v":0},null,null,{"$f":"SUM(N13:N19)","v":0}]
[]
[null,"Signature du capitaine",null,null,null,null,null,"Signature du capitaine"]
[]
["Ces résultats sont à transmettre (sous 48 heures) à Philippe LEBOURGEOIS  mail : lebourgeois.mp@gmail.com"]